[Event "Early-Titled-Tuesday-Blitz-May-28-2024"]
[Site "Chess.com"]
[Date "2024.05.28"]
[Round "4"]
[White "Kostya0705"]
[Black "Thunderbolt135"]
[Result "0-1"]
[WhiteElo "2586"]
[BlackElo "2872"]
[TimeControl "180+1"]
[EndTime "8:40:44 PDT"]
[Termination "Thunderbolt135 won by resignation"]

1. e4 {[%clk 0:03:00.9]} 1... c5 {[%clk 0:03:00.5]} 2. Nf3 {[%clk 0:03:00.3]}
2... e6 {[%clk 0:03:01.2]} 3. d4 {[%clk 0:03:00.2]} 3... cxd4 {[%clk 0:03:02.1]}
4. Nxd4 {[%clk 0:03:00.8]} 4... a6 {[%clk 0:03:03]} 5. Nc3 {[%clk 0:03:01]} 5...
Qc7 {[%clk 0:03:01.9]} 6. Be3 {[%clk 0:02:59.5]} 6... b6 {[%clk 0:03:02]} 7. Qd2
{[%clk 0:02:58]} 7... Bb7 {[%clk 0:03:02.5]} 8. O-O-O {[%clk 0:02:58.4]} 8...
Nf6 {[%clk 0:03:02.5]} 9. f3 {[%clk 0:02:58.5]} 9... d6 {[%clk 0:03:02.9]} 10.
g4 {[%clk 0:02:57.7]} 10... b5 {[%clk 0:02:59.7]} 11. g5 {[%clk 0:02:56.3]}
11... Nfd7 {[%clk 0:02:59.6]} 12. h4 {[%clk 0:02:57.2]} 12... Nc6 {[%clk
0:02:54.3]} 13. a3 {[%clk 0:02:56.3]} 13... Nde5 {[%clk 0:02:51.7]} 14. f4
{[%clk 0:02:55.1]} 14... Nxd4 {[%clk 0:02:48]} 15. Bxd4 {[%clk 0:02:51]} 15...
Nf3 {[%clk 0:02:46.1]} 16. Qe3 {[%clk 0:02:51.5]} 16... Nxd4 {[%clk 0:02:46.7]}
17. Qxd4 {[%clk 0:02:52.4]} 17... Qc5 {[%clk 0:02:47.2]} 18. Qd3 {[%clk
0:02:51.8]} 18... Rc8 {[%clk 0:02:46.4]} 19. Kb1 {[%clk 0:02:50.4]} 19... Be7
{[%clk 0:02:36.4]} 20. h5 {[%clk 0:02:50.6]} 20... b4 {[%clk 0:02:24.6]} 21.
axb4 {[%clk 0:02:50]} 21... Qxb4 {[%clk 0:02:25.5]} 22. Bg2 {[%clk 0:02:45.7]}
22... Rb8 {[%clk 0:02:13.8]} 23. b3 {[%clk 0:02:43.3]} 23... a5 {[%clk
0:02:12.7]} 24. g6 {[%clk 0:02:33.9]} 24... fxg6 {[%clk 0:02:08.4]} 25. hxg6
{[%clk 0:02:33.2]} 25... h6 {[%clk 0:02:08.9]} 26. Na2 {[%clk 0:02:16.9]} 26...
Qc5 {[%clk 0:02:04.1]} 27. Bh3 {[%clk 0:02:13.8]} 27... Bc8 {[%clk 0:02:01.2]}
28. Qf3 {[%clk 0:01:36.3]} 28... O-O {[%clk 0:01:54.3]} 29. Rd3 {[%clk
0:01:32.1]} 29... a4 {[%clk 0:01:49.6]} 30. b4 {[%clk 0:01:30.1]} 30... Rxb4+
{[%clk 0:01:37.2]} 31. Nxb4 {[%clk 0:01:29.7]} 31... Qxb4+ {[%clk 0:01:38.1]}
32. Kc1 {[%clk 0:01:25.7]} 32... Bg5 {[%clk 0:01:31.7]} 33. fxg5 {[%clk
0:01:09.8]} 33... Rxf3 {[%clk 0:01:32.6]} 34. Rxf3 {[%clk 0:01:10.1]} 34... Qxe4
{[%clk 0:00:55.6]} 35. Rhf1 {[%clk 0:01:04.7]} 35... Qxg6 {[%clk 0:00:56.2]} 36.
Rf8+ {[%clk 0:01:01.1]} 36... Kh7 {[%clk 0:00:56.8]} 37. Rxc8 {[%clk 0:01:01.4]}
37... Qxg5+ {[%clk 0:00:57.5]} 38. Kb1 {[%clk 0:00:46.2]} 38... Qb5+ {[%clk
0:00:50.4]} 39. Ka1 {[%clk 0:00:44.2]} 39... Qe5+ {[%clk 0:00:15.1]} 40. Kb1
{[%clk 0:00:42.7]} 40... a3 {[%clk 0:00:14.4]} 41. Rb8 {[%clk 0:00:36.1]} 41...
Qe3 {[%clk 0:00:06.4]} 42. Rb3 {[%clk 0:00:35.5]} 42... a2+ {[%clk 0:00:05.3]}
43. Kxa2 {[%clk 0:00:34.9]} 43... Qe2 {[%clk 0:00:06]} 44. Rc1 {[%clk 0:00:32]}
44... d5 {[%clk 0:00:05.3]} 45. Kb1 {[%clk 0:00:29.1]} 45... e5 {[%clk
0:00:04.9]} 46. Bf5+ {[%clk 0:00:27.6]} 46... Kg8 {[%clk 0:00:03.6]} 47. Bg6
{[%clk 0:00:25.4]} 47... Kf8 {[%clk 0:00:03.4]} 48. Rb7 {[%clk 0:00:24.3]} 48...
Qc4 {[%clk 0:00:02.9]} 49. Bd3 {[%clk 0:00:19.7]} 49... Qc5 {[%clk 0:00:02.8]}
50. Rf1+ {[%clk 0:00:18.7]} 50... Ke8 {[%clk 0:00:02.8]} 51. Rxg7 {[%clk
0:00:11.5]} 51... Qb4+ {[%clk 0:00:02.4]} 52. Kc1 {[%clk 0:00:11.7]} 52... e4
{[%clk 0:00:02.4]} 53. Be2 {[%clk 0:00:10.7]} 53... Qa3+ {[%clk 0:00:01.3]} 54.
Kd1 {[%clk 0:00:11.1]} 54... Qa1+ {[%clk 0:00:01]} 55. Kd2 {[%clk 0:00:11.4]}
55... Qxg7 {[%clk 0:00:01.9]} 56. Bh5+ {[%clk 0:00:09.9]} 56... Ke7 {[%clk
0:00:02.6]} 57. Ke2 {[%clk 0:00:09]} 57... Qg2+ {[%clk 0:00:02.7]} 58. Rf2
{[%clk 0:00:09.1]} 58... Qg5 {[%clk 0:00:03.6]} 59. Rf7+ {[%clk 0:00:07.8]}
59... Ke6 {[%clk 0:00:04.2]} 0-1

[Event "Early-Titled-Tuesday-Blitz-May-28-2024"]
[Site "Chess.com"]
[Date "2024.05.28"]
[Round "4"]
[White "manitodeplomo"]
[Black "Mihajlovskij"]
[Result "1-0"]
[WhiteElo "2552"]
[BlackElo "2255"]
[TimeControl "180+1"]
[EndTime "8:40:46 PDT"]
[Termination "manitodeplomo won by resignation"]

1. d4 {[%clk 0:02:48]} 1... Nf6 {[%clk 0:02:58.5]} 2. c4 {[%clk 0:02:47]} 2...
g6 {[%clk 0:02:58.3]} 3. Nc3 {[%clk 0:02:46.1]} 3... Bg7 {[%clk 0:02:58.1]} 4.
e4 {[%clk 0:02:46.5]} 4... d6 {[%clk 0:02:57.7]} 5. Be2 {[%clk 0:02:46.8]} 5...
O-O {[%clk 0:02:57.9]} 6. Nf3 {[%clk 0:02:47]} 6... Nc6 {[%clk 0:02:57.6]} 7. d5
{[%clk 0:02:46]} 7... Nb8 {[%clk 0:02:53.5]} 8. O-O {[%clk 0:02:44]} 8... c6
{[%clk 0:02:53]} 9. h3 {[%clk 0:02:40.9]} 9... cxd5 {[%clk 0:02:52.7]} 10. exd5
{[%clk 0:02:36.6]} 10... Na6 {[%clk 0:02:41.8]} 11. Be3 {[%clk 0:02:31.8]} 11...
Nc5 {[%clk 0:02:37.3]} 12. Rc1 {[%clk 0:02:29.8]} 12... a5 {[%clk 0:02:35.8]}
13. b3 {[%clk 0:02:28.4]} 13... Nfe4 {[%clk 0:02:21.3]} 14. Nxe4 {[%clk
0:02:24.5]} 14... Nxe4 {[%clk 0:02:21.3]} 15. Bd4 {[%clk 0:02:23.8]} 15... e5
{[%clk 0:02:06.9]} 16. dxe6 {[%clk 0:02:22.1]} 16... Bxe6 {[%clk 0:02:05.4]} 17.
Bxg7 {[%clk 0:02:20.7]} 17... Kxg7 {[%clk 0:02:04.4]} 18. Qd4+ {[%clk
0:02:20.6]} 18... Nf6 {[%clk 0:02:04.4]} 19. Rfd1 {[%clk 0:02:19.6]} 19... d5
{[%clk 0:02:02.1]} 20. Ne5 {[%clk 0:01:48.5]} 20... dxc4 {[%clk 0:01:57.6]} 21.
Qb2 {[%clk 0:01:31.3]} 21... Qe7 {[%clk 0:01:44.3]} 22. Bxc4 {[%clk 0:01:29.9]}
22... Bxc4 {[%clk 0:01:42.7]} 23. Rxc4 {[%clk 0:01:21]} 23... Kg8 {[%clk
0:01:31.7]} 24. Rdc1 {[%clk 0:01:13.7]} 24... Rfe8 {[%clk 0:01:27.3]} 25. f4
{[%clk 0:01:07.9]} 25... Nd5 {[%clk 0:01:25.4]} 26. Rd4 {[%clk 0:01:05.8]} 26...
Nxf4 {[%clk 0:01:19.8]} 27. Rxf4 {[%clk 0:00:55.2]} 27... Qxe5 {[%clk
0:01:19.2]} 28. Qxe5 {[%clk 0:00:54.2]} 28... Rxe5 {[%clk 0:01:19.8]} 29. Rc7
{[%clk 0:00:51.2]} 29... f5 {[%clk 0:01:08.7]} 30. Rd4 {[%clk 0:00:40.9]} 30...
Rae8 {[%clk 0:00:49]} 31. Rdd7 {[%clk 0:00:37]} 31... h5 {[%clk 0:00:46.4]} 32.
Rg7+ {[%clk 0:00:34.3]} 32... Kh8 {[%clk 0:00:45]} 33. Rh7+ {[%clk 0:00:32.6]}
33... Kg8 {[%clk 0:00:44.9]} 34. Rcg7+ {[%clk 0:00:32.5]} 34... Kf8 {[%clk
0:00:44.8]} 35. Rxg6 {[%clk 0:00:32.8]} 35... Re1+ {[%clk 0:00:42.1]} 36. Kh2
{[%clk 0:00:31.7]} 36... R1e2 {[%clk 0:00:42]} 37. Rxh5 {[%clk 0:00:27.2]} 37...
Rxa2 {[%clk 0:00:35.2]} 38. Rxf5+ {[%clk 0:00:25.6]} 38... Ke7 {[%clk
0:00:34.7]} 39. Re5+ {[%clk 0:00:24.4]} 39... Kd8 {[%clk 0:00:27.8]} 40. Rxe8+
{[%clk 0:00:23.5]} 40... Kxe8 {[%clk 0:00:27.5]} 41. Rb6 {[%clk 0:00:19.4]}
41... Rb2 {[%clk 0:00:25.9]} 42. Rxb7 {[%clk 0:00:18.9]} 42... a4 {[%clk
0:00:24.5]} 43. b4 {[%clk 0:00:18.5]} 43... a3 {[%clk 0:00:24]} 44. Ra7 {[%clk
0:00:17.7]} 44... a2 {[%clk 0:00:23.9]} 45. b5 {[%clk 0:00:17.4]} 45... Kd8
{[%clk 0:00:23.7]} 46. b6 {[%clk 0:00:17.2]} 46... Kc8 {[%clk 0:00:23.8]} 47. h4
{[%clk 0:00:16.9]} 47... Kb8 {[%clk 0:00:18.6]} 48. h5 {[%clk 0:00:15.9]} 48...
Rb5 {[%clk 0:00:17.4]} 49. g4 {[%clk 0:00:14.7]} 49... Rb4 {[%clk 0:00:16.3]}
50. Rxa2 {[%clk 0:00:13.7]} 50... Rxg4 {[%clk 0:00:15.4]} 51. Ra3 {[%clk
0:00:14.1]} 51... Kb7 {[%clk 0:00:11.3]} 52. Rh3 {[%clk 0:00:14.1]} 52... Kxb6
{[%clk 0:00:08.9]} 53. h6 {[%clk 0:00:14.1]} 53... Rg8 {[%clk 0:00:08.7]} 54. h7
{[%clk 0:00:14.3]} 54... Rh8 {[%clk 0:00:09.1]} 55. Kg3 {[%clk 0:00:14.5]} 55...
Kc6 {[%clk 0:00:09.3]} 56. Kg4 {[%clk 0:00:14.5]} 56... Kd7 {[%clk 0:00:09.5]}
57. Kg5 {[%clk 0:00:15]} 57... Ke7 {[%clk 0:00:08.6]} 58. Kg6 {[%clk 0:00:15.5]}
58... Kf8 {[%clk 0:00:07.7]} 59. Rf3+ {[%clk 0:00:15.3]} 59... Ke7 {[%clk
0:00:07.4]} 60. Kg7 {[%clk 0:00:15.4]} 60... Rd8 {[%clk 0:00:06]} 61. h8=Q
{[%clk 0:00:15.3]} 61... Rxh8 {[%clk 0:00:05.9]} 62. Kxh8 {[%clk 0:00:16.2]} 1-0

[Event "Early-Titled-Tuesday-Blitz-May-28-2024"]
[Site "Chess.com"]
[Date "2024.05.28"]
[Round "4"]
[White "NovakRatko"]
[Black "dmosesov"]
[Result "0-1"]
[WhiteElo "2382"]
[BlackElo "2648"]
[TimeControl "180+1"]
[EndTime "8:40:47 PDT"]
[Termination "dmosesov won on time"]

1. d4 {[%clk 0:02:59.8]} 1... Nf6 {[%clk 0:02:59.4]} 2. c4 {[%clk 0:03:00.1]}
2... e6 {[%clk 0:02:54.4]} 3. Bg5 {[%clk 0:02:59.7]} 3... h6 {[%clk 0:02:48.3]}
4. Bxf6 {[%clk 0:02:59.6]} 4... Qxf6 {[%clk 0:02:49.2]} 5. Nf3 {[%clk
0:02:59.8]} 5... Bb4+ {[%clk 0:02:45.6]} 6. Nbd2 {[%clk 0:02:58.8]} 6... O-O
{[%clk 0:02:40]} 7. a3 {[%clk 0:02:58.4]} 7... Bxd2+ {[%clk 0:02:30.9]} 8. Qxd2
{[%clk 0:02:57.9]} 8... d6 {[%clk 0:02:30.4]} 9. e4 {[%clk 0:02:57.9]} 9... Nc6
{[%clk 0:02:26.6]} 10. b4 {[%clk 0:02:52.6]} 10... Qg6 {[%clk 0:01:49.8]} 11.
Qd3 {[%clk 0:02:21.9]} 11... b6 {[%clk 0:01:18.1]} 12. Nh4 {[%clk 0:02:12.1]}
12... Qf6 {[%clk 0:00:51.8]} 13. Nf3 {[%clk 0:02:09.9]} 13... Bb7 {[%clk
0:00:51.6]} 14. Be2 {[%clk 0:02:03.5]} 14... a5 {[%clk 0:00:39.5]} 15. b5 {[%clk
0:02:01.3]} 15... Ne7 {[%clk 0:00:39.8]} 16. O-O {[%clk 0:02:01.2]} 16... Qg6
{[%clk 0:00:28.7]} 17. Nd2 {[%clk 0:01:59.1]} 17... f5 {[%clk 0:00:29.3]} 18. f3
{[%clk 0:01:50.4]} 18... Rad8 {[%clk 0:00:25.2]} 19. d5 {[%clk 0:01:49.6]} 19...
e5 {[%clk 0:00:22.9]} 20. exf5 {[%clk 0:01:44.3]} 20... Nxf5 {[%clk 0:00:21.6]}
21. g4 {[%clk 0:01:29.7]} 21... Ne7 {[%clk 0:00:21.4]} 22. Ne4 {[%clk
0:01:23.9]} 22... Bc8 {[%clk 0:00:21]} 23. Kh1 {[%clk 0:01:22.6]} 23... Qf7
{[%clk 0:00:19.3]} 24. Bd1 {[%clk 0:01:01.5]} 24... Ng6 {[%clk 0:00:19.4]} 25.
Bc2 {[%clk 0:01:01.6]} 25... Nf4 {[%clk 0:00:18.1]} 26. Qd2 {[%clk 0:00:47.8]}
26... Qe7 {[%clk 0:00:16]} 27. Qf2 {[%clk 0:00:44]} 27... g6 {[%clk 0:00:14.7]}
28. Rae1 {[%clk 0:00:39.8]} 28... Kg7 {[%clk 0:00:15.2]} 29. Qg3 {[%clk
0:00:39.5]} 29... Rf7 {[%clk 0:00:15.7]} 30. Nc3 {[%clk 0:00:22]} 30... Rdf8
{[%clk 0:00:15]} 31. Be4 {[%clk 0:00:16.6]} 31... Bd7 {[%clk 0:00:13.5]} 32. h4
{[%clk 0:00:14.9]} 32... Kh8 {[%clk 0:00:11.8]} 33. Kh2 {[%clk 0:00:14.9]} 33...
Rg7 {[%clk 0:00:10.3]} 34. Ne2 {[%clk 0:00:14.6]} 34... Qf6 {[%clk 0:00:09.3]}
35. Nxf4 {[%clk 0:00:14.6]} 35... exf4 {[%clk 0:00:09.8]} 36. Qf2 {[%clk
0:00:14.7]} 36... Re7 {[%clk 0:00:10.4]} 37. Kh3 {[%clk 0:00:14.4]} 37... Rfe8
{[%clk 0:00:10.2]} 38. Kh2 {[%clk 0:00:12.8]} 38... Kg7 {[%clk 0:00:09.4]} 39.
Qd2 {[%clk 0:00:12.8]} 39... Bc8 {[%clk 0:00:07.7]} 40. Qf2 {[%clk 0:00:12.9]}
40... Qc3 {[%clk 0:00:06.1]} 41. a4 {[%clk 0:00:12.6]} 41... Qxc4 {[%clk
0:00:04.1]} 42. Ra1 {[%clk 0:00:12.1]} 42... Kh7 {[%clk 0:00:04.7]} 43. Rfc1
{[%clk 0:00:11.9]} 43... Qb4 {[%clk 0:00:03.7]} 44. Qc2 {[%clk 0:00:08.6]} 44...
Kg7 {[%clk 0:00:02.3]} 45. Qc3+ {[%clk 0:00:04.2]} 45... Qxc3 {[%clk 0:00:02.6]}
46. Rxc3 {[%clk 0:00:05.1]} 46... Rxe4 {[%clk 0:00:03]} 47. fxe4 {[%clk
0:00:05.3]} 47... Bxg4 {[%clk 0:00:03.7]} 48. Rxc7+ {[%clk 0:00:05.5]} 48... Kf6
{[%clk 0:00:04.3]} 49. Re1 {[%clk 0:00:05.7]} 49... g5 {[%clk 0:00:04.3]} 50.
Rc6 {[%clk 0:00:06.1]} 50... Ke5 {[%clk 0:00:04.5]} 51. Rxb6 {[%clk 0:00:06.3]}
51... Bf3 {[%clk 0:00:05]} 52. hxg5 {[%clk 0:00:06.4]} 52... hxg5 {[%clk
0:00:05.2]} 53. Kg1 {[%clk 0:00:06.5]} 53... g4 {[%clk 0:00:04.3]} 54. Kf2
{[%clk 0:00:06.4]} 54... Rh8 {[%clk 0:00:04.8]} 55. Rg1 {[%clk 0:00:06.7]} 55...
Rh2+ {[%clk 0:00:05.2]} 56. Ke1 {[%clk 0:00:07]} 56... g3 {[%clk 0:00:05.2]} 57.
Rb8 {[%clk 0:00:05.8]} 57... Re2+ {[%clk 0:00:05.6]} 58. Kf1 {[%clk 0:00:05.3]}
58... Rd2 {[%clk 0:00:05.2]} 59. Re8+ {[%clk 0:00:03.8]} 59... Kd4 {[%clk
0:00:05.8]} 0-1

[Event "Early-Titled-Tuesday-Blitz-May-28-2024"]
[Site "Chess.com"]
[Date "2024.05.28"]
[Round "4"]
[White "bascheyaro"]
[Black "mishanick"]
[Result "1/2-1/2"]
[WhiteElo "2821"]
[BlackElo "3052"]
[TimeControl "180+1"]
[EndTime "8:40:49 PDT"]
[Termination "Game drawn by repetition"]

1. d4 {[%clk 0:03:00.9]} 1... Nf6 {[%clk 0:02:59.6]} 2. c4 {[%clk 0:03:01]} 2...
e6 {[%clk 0:02:59.9]} 3. Nf3 {[%clk 0:03:01]} 3... d5 {[%clk 0:03:00.4]} 4. Bg5
{[%clk 0:03:00.8]} 4... dxc4 {[%clk 0:02:59.5]} 5. e3 {[%clk 0:03:00.8]} 5... b5
{[%clk 0:02:58.5]} 6. a4 {[%clk 0:03:01]} 6... c6 {[%clk 0:02:57.2]} 7. g3
{[%clk 0:03:00.8]} 7... Bb7 {[%clk 0:02:56.6]} 8. Bg2 {[%clk 0:03:00.9]} 8...
Nbd7 {[%clk 0:02:54.8]} 9. O-O {[%clk 0:03:01]} 9... Be7 {[%clk 0:02:51.9]} 10.
Bxf6 {[%clk 0:03:00.6]} 10... Nxf6 {[%clk 0:02:50.6]} 11. b3 {[%clk 0:02:58.7]}
11... cxb3 {[%clk 0:02:50.3]} 12. Qxb3 {[%clk 0:02:58.7]} 12... a6 {[%clk
0:02:50.9]} 13. Ne5 {[%clk 0:02:58.6]} 13... Nd5 {[%clk 0:02:49.2]} 14. Rc1
{[%clk 0:02:58.8]} 14... Rc8 {[%clk 0:02:48.2]} 15. Nc3 {[%clk 0:02:55.2]} 15...
O-O {[%clk 0:02:34.2]} 16. Nxd5 {[%clk 0:02:54.5]} 16... exd5 {[%clk 0:02:31]}
17. axb5 {[%clk 0:02:54.5]} 17... axb5 {[%clk 0:02:28.5]} 18. Ra7 {[%clk
0:02:43.9]} 18... Qb6 {[%clk 0:02:02.8]} 19. Ra2 {[%clk 0:02:43.9]} 19... Rfd8
{[%clk 0:01:56.4]} 20. Rac2 {[%clk 0:02:43.8]} 20... Bd6 {[%clk 0:01:51.8]} 21.
Bh3 {[%clk 0:02:35.7]} 21... Rc7 {[%clk 0:01:48.6]} 22. Nd3 {[%clk 0:02:35.8]}
22... Ra8 {[%clk 0:01:46.5]} 23. Nc5 {[%clk 0:02:33.1]} 23... Bxc5 {[%clk
0:01:42.6]} 24. Rxc5 {[%clk 0:02:34]} 24... Re7 {[%clk 0:01:42.2]} 25. Bf1
{[%clk 0:02:30.4]} 25... g6 {[%clk 0:01:40.4]} 26. h4 {[%clk 0:02:29]} 26... h5
{[%clk 0:01:39.3]} 27. Bd3 {[%clk 0:02:23.3]} 27... Qa5 {[%clk 0:01:37.1]} 28.
Qd1 {[%clk 0:02:16.3]} 28... Kg7 {[%clk 0:01:33.3]} 29. Qf3 {[%clk 0:02:00.6]}
29... Re6 {[%clk 0:01:31.3]} 30. Qf4 {[%clk 0:01:57.1]} 30... Qd8 {[%clk
0:01:28.6]} 31. Qf3 {[%clk 0:01:38.1]} 31... Ra2 {[%clk 0:01:22.9]} 32. Qd1
{[%clk 0:01:33.3]} 32... Qa5 {[%clk 0:01:15.7]} 33. R5c2 {[%clk 0:01:28.6]}
33... Ra3 {[%clk 0:01:15.3]} 34. Bf1 {[%clk 0:01:26.5]} 34... Re8 {[%clk
0:01:09.5]} 35. Bh3 {[%clk 0:01:26.5]} 35... b4 {[%clk 0:01:08.4]} 36. Bd7
{[%clk 0:01:24.4]} 36... Rb8 {[%clk 0:01:06.1]} 37. Rc5 {[%clk 0:01:23.2]} 37...
Qa4 {[%clk 0:00:47.5]} 38. Qf3 {[%clk 0:01:16.2]} 38... b3 {[%clk 0:00:45]} 39.
Qf4 {[%clk 0:01:16.6]} 39... b2 {[%clk 0:00:36.1]} 40. Qe5+ {[%clk 0:01:11.5]}
40... Kh7 {[%clk 0:00:35.8]} 41. Qxb8 {[%clk 0:01:05.1]} 41... Ra1 {[%clk
0:00:35.7]} 42. Qf8 {[%clk 0:01:03.8]} 42... Rxc1+ {[%clk 0:00:18.5]} 43. Kg2
{[%clk 0:01:00.6]} 43... Rg1+ {[%clk 0:00:18]} 44. Kxg1 {[%clk 0:00:38.1]} 44...
b1=Q+ {[%clk 0:00:17.1]} 45. Kh2 {[%clk 0:00:38.4]} 45... Qa8 {[%clk 0:00:11.3]}
46. Qxf7+ {[%clk 0:00:36.4]} 46... Kh6 {[%clk 0:00:12]} 47. Qf4+ {[%clk
0:00:26.8]} 47... Kh7 {[%clk 0:00:09.4]} 48. Qf7+ {[%clk 0:00:26.7]} 48... Kh6
{[%clk 0:00:09.8]} 49. Qf4+ {[%clk 0:00:26.9]} 49... Kg7 {[%clk 0:00:10.2]} 50.
Qe5+ {[%clk 0:00:27.3]} 50... Kg8 {[%clk 0:00:08]} 51. Qe6+ {[%clk 0:00:23.7]}
51... Kh7 {[%clk 0:00:04.8]} 52. Qe7+ {[%clk 0:00:12.2]} 52... Kh8 {[%clk
0:00:02.4]} 53. Qf6+ {[%clk 0:00:12.1]} 53... Kh7 {[%clk 0:00:01.8]} 54. Qe7+
{[%clk 0:00:12.5]} 54... Kg8 {[%clk 0:00:01.5]} 55. Be6+ {[%clk 0:00:10.1]}
55... Kh8 {[%clk 0:00:02]} 56. Qf6+ {[%clk 0:00:10.4]} 56... Kh7 {[%clk
0:00:02.5]} 57. Qe7+ {[%clk 0:00:10.6]} 57... Kh6 {[%clk 0:00:02.5]} 58. Qg5+
{[%clk 0:00:10.3]} 58... Kg7 {[%clk 0:00:02.9]} 59. Qe7+ {[%clk 0:00:10.6]}
59... Kh8 {[%clk 0:00:03.6]} 60. Qf6+ {[%clk 0:00:10.4]} 60... Kh7 {[%clk
0:00:04.2]} 61. Qe7+ {[%clk 0:00:05.7]} 61... Kh6 {[%clk 0:00:04.7]} 62. Qg5+
{[%clk 0:00:05.2]} 62... Kg7 {[%clk 0:00:02.2]} 63. Qe7+ {[%clk 0:00:05.4]}
63... Kh8 {[%clk 0:00:01.9]} 1/2-1/2

[Event "Early-Titled-Tuesday-Blitz-May-28-2024"]
[Site "Chess.com"]
[Date "2024.05.28"]
[Round "4"]
[White "Irina_Mikhaylova"]
[Black "djano"]
[Result "0-1"]
[WhiteElo "2335"]
[BlackElo "2584"]
[TimeControl "180+1"]
[EndTime "8:40:52 PDT"]
[Termination "djano won by resignation"]

1. d4 {[%clk 0:03:00.9]} 1... f5 {[%clk 0:02:59.4]} 2. Nf3 {[%clk 0:03:00.8]}
2... e6 {[%clk 0:02:59.6]} 3. g3 {[%clk 0:03:01.2]} 3... Nf6 {[%clk 0:03:00]} 4.
Bg2 {[%clk 0:03:01.3]} 4... Be7 {[%clk 0:03:00.4]} 5. O-O {[%clk 0:03:01.6]}
5... O-O {[%clk 0:03:01]} 6. c4 {[%clk 0:03:00.5]} 6... d6 {[%clk 0:03:01.3]} 7.
b4 {[%clk 0:03:00.5]} 7... Qe8 {[%clk 0:03:01.4]} 8. Bb2 {[%clk 0:03:00.4]} 8...
Ne4 {[%clk 0:03:01.8]} 9. Nbd2 {[%clk 0:02:59]} 9... Bf6 {[%clk 0:03:02.2]} 10.
e3 {[%clk 0:02:58.7]} 10... a5 {[%clk 0:02:57.3]} 11. b5 {[%clk 0:02:57.9]}
11... Nd7 {[%clk 0:02:57.6]} 12. Ne1 {[%clk 0:02:52.6]} 12... Ng5 {[%clk
0:02:53.7]} 13. f4 {[%clk 0:02:43.1]} 13... Nf7 {[%clk 0:02:52.9]} 14. e4 {[%clk
0:02:43.4]} 14... g6 {[%clk 0:02:45.3]} 15. Nd3 {[%clk 0:02:32.9]} 15... Nd8
{[%clk 0:02:35.5]} 16. e5 {[%clk 0:02:28.3]} 16... Bg7 {[%clk 0:02:33.3]} 17.
Re1 {[%clk 0:02:19.2]} 17... dxe5 {[%clk 0:02:33.3]} 18. Nxe5 {[%clk 0:02:12.9]}
18... Nxe5 {[%clk 0:02:31.2]} 19. dxe5 {[%clk 0:02:12.4]} 19... Qe7 {[%clk
0:02:29.5]} 20. Nf3 {[%clk 0:02:07.9]} 20... Nf7 {[%clk 0:02:26.4]} 21. a4
{[%clk 0:02:05.6]} 21... Rd8 {[%clk 0:02:25.7]} 22. Qc2 {[%clk 0:02:05.5]} 22...
Qc5+ {[%clk 0:02:20.4]} 23. Kh1 {[%clk 0:01:55.8]} 23... Bd7 {[%clk 0:02:15.9]}
24. Ba3 {[%clk 0:01:54.4]} 24... Qa7 {[%clk 0:02:12.4]} 25. c5 {[%clk
0:01:54.7]} 25... Be8 {[%clk 0:02:10.1]} 26. Red1 {[%clk 0:01:45.3]} 26... c6
{[%clk 0:02:06.9]} 27. b6 {[%clk 0:01:40.8]} 27... Qb8 {[%clk 0:02:07.2]} 28.
Nd4 {[%clk 0:01:30.8]} 28... Bd7 {[%clk 0:01:31.6]} 29. Rd2 {[%clk 0:01:21.5]}
29... Re8 {[%clk 0:01:16.3]} 30. Rad1 {[%clk 0:01:21]} 30... Bc8 {[%clk
0:01:10.4]} 31. Kg1 {[%clk 0:01:12.3]} 31... Nh6 {[%clk 0:01:10.6]} 32. h3
{[%clk 0:01:03.1]} 32... Nf7 {[%clk 0:01:09.8]} 33. Kh2 {[%clk 0:00:50.2]} 33...
h5 {[%clk 0:01:05.2]} 34. h4 {[%clk 0:00:46.9]} 34... Nh6 {[%clk 0:01:05.1]} 35.
Bf3 {[%clk 0:00:47]} 35... Kf7 {[%clk 0:01:02.2]} 36. Nb3 {[%clk 0:00:44.2]}
36... Bf8 {[%clk 0:00:57.8]} 37. Qc3 {[%clk 0:00:43.6]} 37... Be7 {[%clk
0:00:55.1]} 38. Nd4 {[%clk 0:00:38.3]} 38... Rd8 {[%clk 0:00:49.6]} 39. Nc2
{[%clk 0:00:36.6]} 39... Rd5 {[%clk 0:00:49.2]} 40. Ne3 {[%clk 0:00:34.7]} 40...
Bd7 {[%clk 0:00:48.9]} 41. Nxd5 {[%clk 0:00:34.6]} 41... exd5 {[%clk 0:00:49.8]}
42. e6+ {[%clk 0:00:29.8]} 42... Bxe6 {[%clk 0:00:49.5]} 43. Bb2 {[%clk
0:00:30.2]} 43... Qf8 {[%clk 0:00:45.1]} 44. Re2 {[%clk 0:00:30.3]} 44... Bxc5
{[%clk 0:00:35.3]} 45. Rde1 {[%clk 0:00:27]} 45... Bb4 {[%clk 0:00:35.8]} 46.
Qf6+ {[%clk 0:00:25.5]} 46... Kg8 {[%clk 0:00:36.3]} 47. Qxe6+ {[%clk 0:00:24]}
47... Qf7 {[%clk 0:00:35.9]} 48. Qxf7+ {[%clk 0:00:20.4]} 48... Kxf7 {[%clk
0:00:36.8]} 49. Rd1 {[%clk 0:00:20.3]} 49... Rd8 {[%clk 0:00:33.6]} 50. Be5
{[%clk 0:00:20.3]} 50... Rd7 {[%clk 0:00:32.9]} 51. Bc7 {[%clk 0:00:19.5]} 51...
Ng8 {[%clk 0:00:32.8]} 52. Be5 {[%clk 0:00:18.8]} 52... Ne7 {[%clk 0:00:32.8]}
53. Rb2 {[%clk 0:00:18.8]} 53... Bc5 {[%clk 0:00:31.5]} 54. Rc1 {[%clk 0:00:16]}
54... Ba3 {[%clk 0:00:31.8]} 55. Rbc2 {[%clk 0:00:15.8]} 55... Bxc1 {[%clk
0:00:31]} 56. Rxc1 {[%clk 0:00:16.2]} 56... Nc8 {[%clk 0:00:31.6]} 57. Bd4
{[%clk 0:00:15.9]} 57... Re7 {[%clk 0:00:31.2]} 58. Rc2 {[%clk 0:00:15.4]} 58...
Re8 {[%clk 0:00:30.4]} 59. Kg2 {[%clk 0:00:15.4]} 59... Nd6 {[%clk 0:00:30.7]}
60. Bc5 {[%clk 0:00:15.4]} 60... Nc4 {[%clk 0:00:30.9]} 61. Re2 {[%clk
0:00:15.8]} 61... Rd8 {[%clk 0:00:29.6]} 62. Re7+ {[%clk 0:00:13.8]} 62... Kg8
{[%clk 0:00:29.5]} 63. Rxb7 {[%clk 0:00:14.4]} 63... d4 {[%clk 0:00:30.1]} 64.
Bxc6 {[%clk 0:00:14.4]} 64... d3 {[%clk 0:00:30.3]} 65. Bb5 {[%clk 0:00:12.5]}
65... d2 {[%clk 0:00:30.2]} 66. Bxc4+ {[%clk 0:00:12.8]} 66... Kh8 {[%clk
0:00:30.3]} 67. Be2 {[%clk 0:00:13.4]} 67... Re8 {[%clk 0:00:29.5]} 68. Bd1
{[%clk 0:00:13]} 68... Re1 {[%clk 0:00:29.8]} 69. Bd4+ {[%clk 0:00:13.5]} 69...
Kg8 {[%clk 0:00:29.6]} 70. Bb3+ {[%clk 0:00:14.1]} 70... Kf8 {[%clk 0:00:29.2]}
71. Rh7 {[%clk 0:00:14.1]} 71... Rb1 {[%clk 0:00:28.3]} 72. Rf7+ {[%clk
0:00:14.1]} 72... Ke8 {[%clk 0:00:28.4]} 73. Rc7 {[%clk 0:00:11.3]} 73... Rxb3
{[%clk 0:00:27.7]} 74. b7 {[%clk 0:00:11.9]} 74... d1=Q {[%clk 0:00:27.3]} 75.
Rc8+ {[%clk 0:00:12.5]} 75... Kd7 {[%clk 0:00:27.6]} 76. b8=Q {[%clk 0:00:13]}
76... Rxb8 {[%clk 0:00:27.8]} 77. Rxb8 {[%clk 0:00:13.6]} 77... Qxd4 {[%clk
0:00:26.2]} 0-1